bitfinex-derivatives/quotes_ETHF0:USTF0_20250110
["timestamp","ask_amount","ask_price","bid_price","bid_amount"]
[1736526965208,3.2078,3245.9,3245.5,0.30816]
[1736526965209,0.00143878,3245.6,3245.5,0.30816]
[1736526965714,2.39491878,3245.6,3245.5,0.30816]
[1736526966213,2.39491878,3245.6,3245.4,3.51597]
[1736526966510,0.30817,3245.4,3245.3,40.8]
[1736526966710,0.3082,3245.2,3245.1,0.30819]
[1736526966910,2.70168,3245.2,3245.1,0.30819]
[1736526967112,0.30822,3245.0,3244.9,0.30821]
[1736526967313,0.30822,3245.0,3244.9,40.8]
[1736526967514,2.7017,3245.0,3244.9,40.8]
[1736526967715,2.7017,3245.0,3244.9,41.10822]
[1736526968008,2.39348,3245.0,3244.9,41.10822]
[1736526968211,1.7904,3245.1,3245.0,0.30821]
[1736526969216,1.7904,3245.1,3245.0,3.51601]
[1736526969511,0.00143878,3245.6,3245.0,3.2078]
[1736526969705,2.39348,3245.1,3245.0,3.2078]
[1736526970008,2.39348,3245.1,3245.0,3.51601]
[1736526970204,0.00143878,3245.6,3245.5,0.30816]
[1736526970610,2.39491878,3245.6,3245.5,0.30816]
[1736526970814,0.00143878,3245.6,3245.5,0.30816]
[1736526971203,0.00143878,3245.6,3245.5,41.10816]
[1736526972016,0.00143878,3245.6,3245.5,40.8]
[1736526972017,2.70306878,3245.6,3245.5,40.8]
[1736526972216,2.70306878,3245.6,3244.5,3.97842]
[1736526972217,3.16531878,3245.6,3244.5,3.97842]
[1736526972416,2.39348,3244.6,3244.5,0.30826]
[1736526972722,2.39348,3244.6,3244.5,41.10826]
[1736526972924,4.41663,3244.6,3244.5,41.10826]
[1736526973214,4.10838,3244.6,3244.5,41.10826]
[1736526973607,4.41663,3244.6,3244.5,40.8]
[1736526974216,4.41663,3244.6,3244.5,41.10826]
[1736526974512,4.10838,3244.6,3244.5,41.10826]
[1736526975121,4.41663,3244.6,3244.5,41.10826]
[1736526975319,4.41663,3244.6,3244.5,40.8]
[1736526975713,4.41663,3244.6,3244.5,41.10826]
[1736526975714,4.10838,3244.6,3244.5,41.10826]
[1736526975916,1.7149,3244.6,3244.5,41.10826]
[1736526976214,4.10838,3244.6,3244.5,41.10826]
[1736526976415,4.10838,3244.6,3244.5,40.8]
[1736526976416,4.41663,3244.6,3244.5,40.8]
[1736526977822,4.10838,3244.6,3244.5,41.10826]
[1736526978026,1.7149,3244.6,3244.5,41.10826]
[1736526978223,4.10838,3244.6,3244.5,41.10826]
[1736526979320,4.41663,3244.6,3244.5,40.8]
[1736526979617,4.10838,3244.6,3244.2,0.30828]
[1736526979819,2.39348,3244.2,3244.1,0.30829]
[1736526980126,0.3083,3244.0,3243.9,0.3083]
[1736526980316,5.79745,3244.5,3243.7,0.30833]
[1736526980317,3.2078,3244.1,3243.7,0.30833]
[1736526980518,3.2078,3244.1,3243.1,6.13815848]
[1736526980724,3.328,3244.5,3244.0,0.3083]
[1736526980921,3.2078,3244.2,3243.9,40.8]
[1736526981223,0.30828,3244.2,3244.1,0.30829]
[1736526981419,2.39348,3244.0,3243.9,40.8]
[1736526981620,2.39348,3244.0,3243.9,41.10831]
[1736526983823,3.328,3244.5,3244.4,0.30826]
[1736526984126,1.819,3244.5,3244.4,0.30826]
[1736526984329,2.39348,3244.5,3244.4,0.30826]
[1736526984522,3.2078,3245.0,3244.5,0.30826]
[1736526984727,2.39348,3244.8,3244.7,0.30824]
[1736526985123,2.39348,3244.8,3244.5,0.30826]
[1736526985324,2.39348,3244.8,3244.7,41.10824]
[1736526985526,1.6815,3245.2,3244.7,40.8]
[1736526985723,2.70171,3244.8,3244.7,40.8]
[1736526986118,5.87448,3244.8,3243.8,3.2078]
[1736526986422,2.39348,3244.3,3244.2,0.30828]
[1736526986624,2.39348,3244.3,3244.2,41.10828]
[1736526987330,2.70175,3244.3,3244.2,40.8]
[1736526988625,2.39348,3244.3,3243.3,3.2078]
[1736526988825,2.39348,3243.7,3243.6,0.30834]
[1736526989024,3.2078,3244.0,3243.9,0.30831]
[1736526989225,2.39348,3243.9,3243.6,40.8]
[1736526989526,2.39348,3243.9,3243.8,0.30832]
[1736526990730,2.39348,3243.9,3243.6,40.8]
[1736526990925,2.7018,3243.8,3243.7,0.30832]
[1736526991126,2.39348,3243.8,3243.6,40.8]
[1736526991325,5.90961,3243.7,3243.6,41.10834]
[1736526991523,5.90961,3243.7,3243.6,40.8]
[1736526992131,5.90961,3243.7,3242.8,3.2078]
[1736526992132,5.60128,3243.7,3242.8,3.2078]
[1736526992336,0.30837,3243.3,3243.2,0.30837]
[1736526992529,2.39348,3243.2,3243.1,0.30839]
[1736526992729,0.30838,3243.2,3243.1,40.8]
[1736526992925,2.39348,3243.2,3242.0,3.2078]
[1736526993122,2.39348,3242.3,3242.2,0.30847]
[1736526993633,2.39348,3242.3,3242.0,3.2078]
[1736526993826,2.39348,3242.1,3242.0,3.51629]
[1736526994223,1.6942,3242.6,3242.0,3.2078]
[1736526994427,27.6,3251.1,3242.4,3.2078]
[1736526994428,3.2078,3243.5,3242.4,3.2078]
[1736526994628,2.39348,3242.8,3242.7,0.30843]
[1736526994835,2.39348,3242.8,3242.7,3.51623]
[1736526995428,2.39348,3242.8,3242.7,0.30843]
[1736526995733,0.30844,3242.6,3242.3,0.30846]
[1736526996036,2.39348,3242.3,3242.2,3.2078]
[1736526996238,2.39348,3242.3,3242.2,3.51627]
[1736526996736,2.39348,3242.3,3242.2,3.2078]
[1736526996931,2.39348,3242.3,3242.1,40.8]
[1736526996932,0.30847,3242.2,3242.1,40.8]
[1736526997130,2.39348,3242.2,3242.1,40.8]
[1736526997436,2.70195,3242.2,3242.1,40.8]
[1736526998036,5.90975,3242.2,3242.1,40.8]
[1736527000132,5.90975,3242.2,3241.4,0.30854]
[1736527000133,0.30854,3241.6,3241.4,0.30854]
[1736527000435,2.39348,3241.5,3241.4,0.30854]
[1736527000631,2.39348,3241.5,3241.4,41.10854]
[1736527000833,2.70202,3241.5,3241.4,40.8]
[1736527002231,2.70202,3241.5,3241.4,41.10855]
[1736527002429,2.70202,3241.5,3241.4,40.8]
[1736527002726,5.63237848,3241.5,3241.4,40.8]
[1736527003235,0.3086,3240.9,3240.8,0.30861]
[1736527003434,3.5164,3240.9,3240.8,0.30861]
[1736527003630,5.90988,3240.9,3240.8,0.30861]
[1736527003835,5.60128,3240.9,3240.8,0.30861]
[1736527004038,5.60128,3240.9,3240.8,41.10861]
[1736527004236,5.02434,3241.5,3240.8,41.10861]
[1736527004539,5.02434,3241.5,3241.0,0.30859]
[1736527004540,2.39348,3241.1,3241.0,0.30859]
[1736527004936,3.2078,3242.2,3241.0,6.13815848]
[1736527005241,2.39348,3241.7,3241.6,0.30853]
[1736527005443,2.39348,3241.3,3241.2,0.30857]
[1736527005635,2.39348,3241.3,3241.0,3.2078]
[1736527005837,2.39348,3241.1,3241.0,3.2078]
[1736527006042,2.39348,3241.1,3241.0,44.31639]
[1736527006944,2.70206,3241.1,3241.0,44.31639]
[1736527007139,2.39348,3241.1,3241.0,44.31639]
[1736527008037,2.39348,3241.1,3241.0,44.0078]
[1736527008237,2.39348,3241.1,3241.0,44.31639]
[1736527008436,3.6031,3242.0,3241.3,0.7714]
[1736527008637,3.6031,3242.0,3241.9,0.3085]
[1736527009141,0.30851,3241.9,3241.8,0.3085]
[1736527009342,0.30851,3241.9,3241.4,2.49107]
[1736527009343,2.39348,3241.6,3241.4,1.7197]
[1736527009638,2.39348,3241.6,3241.5,0.30854]
[1736527009839,2.39348,3241.6,3241.5,41.10854]
[1736527010937,3.2078,3242.7,3241.5,47.34272]
[1736527011137,2.39348,3242.7,3242.3,3.2078]
[1736527011349,4.9307,3243.7,3243.6,0.30834]
[1736527011635,1.7051,3243.7,3243.6,0.30834]
[1736527011841,3.2078,3244.2,3243.4,0.7709]
[1736527012041,3.2078,3244.2,3244.1,0.30829]
[1736527012236,3.2078,3244.8,3244.1,40.8]
[1736527012437,2.39348,3244.2,3244.1,41.10829]
[1736527012746,2.39348,3244.2,3244.1,40.8]
[1736527013044,2.39348,3244.2,3244.1,41.10829]
[1736527013346,2.39348,3244.2,3244.1,40.8]
[1736527013535,2.70176,3244.2,3244.1,40.8]
[1736527014240,2.70176,3244.2,3243.7,0.30833]
[1736527014241,0.30831,3244.0,3243.7,0.30833]
[1736527014440,2.39348,3243.8,3243.7,0.30833]
[1736527014643,2.39348,3243.8,3243.7,41.10833]
[1736527014947,2.39348,3243.8,3243.7,0.30833]
[1736527015140,0.3083,3244.1,3243.2,3.97875]
[1736527015141,0.3083,3244.1,3243.9,0.30831]
[1736527015539,2.39348,3244.0,3243.8,0.30832]
[1736527015845,2.39348,3243.4,3243.3,0.30837]
[1736527016437,2.39348,3243.4,3243.2,3.2078]
[1736527016642,2.39348,3243.3,3243.2,3.51618]
[1736527017347,2.39348,3243.3,3243.2,41.10838]
[1736527017550,2.39348,3243.3,3243.2,0.30838]
[1736527018141,2.39348,3243.3,3242.8,40.8]
[1736527018142,5.60128,3243.3,3242.8,40.8]
[1736527018439,2.39348,3242.9,3242.4,3.2078]
[1736527018738,2.39348,3242.5,3242.4,3.51626]
[1736527018933,2.39348,3243.0,3242.4,3.2078]
[1736527019137,2.39348,3243.3,3243.2,0.30838]
[1736527019338,2.39348,3243.3,3243.2,41.10838]
[1736527019844,3.5077,3244.3,3243.4,0.77091]
[1736527020045,2.39348,3243.9,3243.8,0.30832]
[1736527020237,2.39348,3244.1,3243.8,0.30832]
[1736527020538,2.39348,3244.1,3244.0,3.5161]
[1736527020745,2.39348,3243.9,3243.8,0.30832]
[1736527020946,2.39348,3243.9,3243.3,0.3333]
[1736527020947,2.39348,3243.9,3243.3,3.5411]
[1736527021238,2.39348,3243.4,3243.3,3.51617]
[1736527022242,2.39348,3243.4,3243.3,0.30837]
[1736527022447,2.39348,3243.4,3242.5,1.6539]
[1736527022743,0.30836,3243.5,3243.3,0.30837]
[1736527023142,0.30834,3243.6,3243.5,0.30835]
[1736527023350,2.39348,3242.9,3242.8,3.51622]
[1736527024040,3.2078,3243.7,3243.3,0.30836]
[1736527024249,2.39348,3243.0,3242.9,0.30841]
[1736527025342,2.39348,3243.0,3242.8,3.2078]
[1736527025540,2.70189,3242.9,3242.8,3.2078]
[1736527025750,0.30844,3242.6,3242.4,0.30845]
[1736527025944,2.39348,3242.2,3241.9,0.77126]
[1736527026247,2.39348,3241.9,3241.8,3.51631]
[1736527026550,3.2078,3242.7,3241.8,3.2078]
[1736527026741,2.39348,3242.1,3242.0,0.30849]
[1736527027143,2.39348,3242.1,3242.0,41.10849]
[1736527028746,2.70196,3242.1,3242.0,40.8]
[1736527028952,2.70196,3242.1,3241.0,1.7314]
[1736527028953,2.39348,3242.1,3241.0,1.7314]
[1736527029251,2.39348,3240.8,3240.7,0.30862]
[1736527029544,2.39348,3240.8,3240.7,41.10862]
[1736527029946,2.70209,3240.8,3240.7,40.8]
[1736527030345,2.70209,3240.8,3240.0,0.30868]
[1736527030346,0.30867,3240.2,3240.0,0.30868]
[1736527030550,2.39348,3239.8,3239.6,3.2078]
[1736527030843,2.39348,3239.7,3239.6,3.51652]
[1736527031352,2.39348,3239.7,3239.6,44.31652]
[1736527034047,2.39348,3239.7,3239.6,41.10872]
[1736527034243,2.39348,3239.7,3239.6,40.8]
[1736527034447,0.30873,3239.6,3238.8,0.3088]
[1736527034752,2.39348,3238.8,3238.7,0.30881]
[1736527036145,2.9310493,3239.4,3238.7,0.30881]
[1736527036146,3.2078,3239.9,3238.7,6.1388493]
[1736527036447,1.52118,3239.2,3239.1,0.30877]
[1736527036647,1.52118,3238.9,3238.8,3.2078]
[1736527036948,1.52118,3238.9,3238.8,3.5166]
[1736527037353,1.52118,3238.9,3238.8,41.1088]
[1736527037649,3.2078,3239.5,3239.4,0.30874]
[1736527038154,4.72898,3239.5,3239.4,0.30874]
[1736527038351,1.52118,3239.5,3239.4,41.10874]
[1736527040860,4.72898,3239.5,3239.4,41.10874]
[1736527041345,1.52118,3239.5,3239.4,41.10874]
[1736527041550,3.2078,3240.0,3239.9,0.30869]
[1736527042058,4.72898,3240.0,3239.9,0.30869]
[1736527042759,1.52118,3240.0,3239.9,0.30869]
[1736527044870,3.2078,3240.8,3239.8,3.2078]
[1736527045058,1.52118,3240.6,3240.5,0.30864]
[1736527045255,1.52118,3240.6,3240.5,41.10864]
[1736527046057,1.82981,3240.6,3240.5,40.8]
[1736527046257,0.30865,3240.4,3240.3,0.30865]
[1736527046561,3.51645,3240.4,3240.3,0.30865]
[1736527046762,5.03763,3240.4,3240.3,41.10865]
[1736527046958,4.72898,3240.4,3240.3,0.30865]
[1736527047163,4.72898,3240.4,3239.9,3.2078]
[1736527047363,1.52118,3240.0,3239.9,3.51649]
[1736527047564,1.52118,3240.0,3239.9,44.31649]
[1736527047960,1.52118,3240.0,3239.9,41.10869]
[1736527048263,4.72898,3240.0,3239.9,40.8]
[1736527048560,0.30871,3239.8,3239.7,0.30871]
[1736527048756,1.6685,3239.9,3239.3,0.30875]
[1736527048957,1.6685,3239.9,3239.1,3.2078]
[1736527048958,1.52118,3239.2,3239.1,3.51657]
[1736527049156,1.52118,3239.2,3239.1,41.10877]
[1736527049355,1.52118,3239.2,3239.1,40.8]
[1736527049552,1.52118,3239.2,3237.8,3.38504613]
[1736527049553,1.52118,3239.2,3238.1,3.2078]
[1736527049759,1.52118,3238.5,3238.4,0.30884]
[1736527049961,1.52118,3238.5,3238.4,41.10884]
[1736527050357,1.52118,3238.5,3238.4,40.8]
[1736527050358,1.83001,3238.5,3238.4,40.8]
[1736527050563,1.83001,3238.5,3238.4,41.10884]
[1736527050763,1.83001,3238.5,3237.3,6.59284613]
[1736527050764,4.72898,3238.5,3237.3,3.2078]
[1736527051063,8.11202613,3238.1,3236.7,3.2078]
[1736527051267,1.51918,3237.2,3237.1,0.30896]
[1736527051666,3.2078,3237.9,3237.2,0.77238]
[1736527051859,3.2078,3237.9,3237.8,0.30889]
[1736527052064,1.51918,3237.5,3237.4,0.30893]
[1736527052565,1.51918,3237.5,3236.6,3.2078]
[1736527052759,1.51918,3236.6,3236.5,0.30902]
[1736527053975,4.7148,3237.2,3236.3,3.2078]
[1736527054268,1.51918,3237.2,3237.1,0.30896]
[1736527054473,1.51918,3237.0,3236.7,3.2078]
[1736527054664,1.51918,3237.2,3236.7,3.2078]
[1736527054865,3.2078,3237.6,3237.5,0.30892]
[1736527054866,1.51918,3237.6,3237.5,0.30892]
[1736527055673,1.51918,3237.6,3237.3,3.2078]
[1736527055869,3.1667,3238.0,3236.5,4.15757613]
[1736527055870,1.51918,3237.4,3237.2,0.30895]
[1736527056065,0.30893,3237.5,3237.2,0.30895]
[1736527056272,1.51918,3237.3,3236.6,3.2078]
[1736527056464,1.51918,3237.3,3236.7,0.7725]
[1736527056670,1.51918,3237.3,3236.9,0.77245]
[1736527056873,3.1667,3238.0,3237.1,0.30896]
[1736527056874,1.51918,3237.2,3237.1,0.30896]
[1736527057068,3.2078,3237.6,3236.8,3.2078]
[1736527057069,1.51918,3237.0,3236.8,3.2078]
[1736527057272,1.51918,3237.0,3236.9,40.8]
[1736527057469,3.2078,3237.6,3237.5,0.30892]
[1736527057775,4.72698,3237.6,3237.5,0.30892]
[1736527058276,4.72698,3237.6,3237.5,41.10892]
[1736527058480,1.51918,3237.6,3237.5,41.10892]
[1736527060775,1.51918,3237.6,3237.5,40.8]
[1736527060982,1.82809,3237.6,3237.5,40.8]
[1736527061187,3.31518,3237.6,3237.5,41.10892]
[1736527061783,3.31518,3237.6,3237.5,40.8]
[1736527061982,3.31518,3237.6,3237.5,41.10892]
[1736527062479,3.31518,3237.6,3237.5,40.8]
[1736527062689,3.31518,3237.6,3237.5,41.10892]
[1736527063986,3.31518,3237.6,3237.5,40.8]
[1736527064183,3.62409,3237.6,3237.5,40.8]
[1736527065183,3.31518,3237.6,3236.4,0.77256]
[1736527065390,1.796,3237.6,3237.3,0.30894]
[1736527065589,1.51918,3237.0,3236.7,0.7725]
[1736527065789,1.51918,3237.0,3236.9,0.30898]
[1736527066590,1.51918,3237.0,3236.9,41.10898]
[1736527070884,3.2078,3237.7,3237.1,0.7724]
[1736527071185,1.51918,3237.6,3237.5,0.30892]
[1736527071485,1.51918,3237.2,3237.1,3.51676]
[1736527073292,7.66008468,3237.2,3236.3,4.9306]
[1736527073481,1.51918,3236.6,3236.5,0.30902]
[1736527073682,1.51918,3236.6,3236.5,41.10902]
[1736527073881,3.2078,3237.2,3236.5,40.8]
[1736527074082,3.2078,3237.2,3237.1,0.30896]
[1736527074385,3.44902,3237.6,3236.7,6.91340468]
[1736527074386,1.51918,3237.1,3236.7,6.91340468]
[1736527074689,4.8409,3237.6,3237.5,0.30892]
[1736527074690,1.51918,3237.6,3237.5,0.30892]
[1736527075087,1.51918,3237.6,3237.2,3.98017]
[1736527075088,2.05119,3237.9,3237.8,0.30889]
[1736527075394,2.05118,3237.9,3237.8,41.10889]
[1736527075584,3.57036,3237.9,3237.8,41.10889]
[1736527075887,3.57036,3237.9,3237.8,40.8]
[1736527076087,3.26148,3237.9,3237.8,41.10889]
[1736527076685,3.57036,3237.9,3237.8,40.8]
[1736527077290,3.57036,3237.9,3237.8,41.10889]
[1736527077488,3.57036,3237.9,3237.8,0.30889]
[1736527077884,3.57036,3237.9,3237.2,3.98016]
[1736527077885,3.26148,3237.9,3237.2,3.98016]
[1736527078086,1.51918,3237.3,3237.2,3.51675]
[1736527078285,4.8647,3238.2,3237.2,3.51675]
[1736527078491,1.51918,3237.6,3237.5,0.30892]
[1736527078692,1.51918,3237.6,3237.3,41.57236]
[1736527078693,1.51918,3237.3,3237.2,3.2078]
[1736527078993,1.51918,3237.3,3237.2,3.51675]
[1736527079190,1.51918,3237.3,3237.2,44.31675]
[1736527080892,1.51918,3237.3,3237.2,44.0078]
[1736527081094,0.30899,3236.8,3236.7,0.30899]
[1736527081297,1.82817,3236.8,3236.7,0.309]
[1736527081597,1.51918,3236.8,3236.7,41.109]
[1736527082298,1.51918,3236.8,3236.7,40.8]
[1736527082486,4.72698,3236.8,3236.1,3.2078]
[1736527082793,1.51918,3236.4,3236.3,0.30904]
[1736527083197,1.82821,3236.4,3236.3,0.30904]
[1736527083388,1.51918,3236.4,3236.3,0.30904]
[1736527084193,1.82821,3236.4,3236.3,0.30904]
[1736527084392,1.51918,3236.4,3236.3,0.30904]
[1736527084587,3.2078,3237.2,3236.6,0.30901]
[1736527084993,3.2078,3237.2,3237.1,0.30896]
[1736527085393,4.72698,3237.2,3237.1,0.30896]
[1736527085702,1.507,3237.7,3237.6,0.30891]
[1736527085898,0.30891,3237.7,3237.6,0.30891]
[1736527086194,1.51918,3237.7,3236.9,0.77246]
[1736527086395,1.51918,3236.9,3236.8,1.93509]
[1736527086591,1.51918,3236.9,3236.8,0.30899]
[1736527087096,1.82816,3236.9,3236.8,41.10899]
[1736527087300,1.51918,3236.9,3236.5,3.2078]
[1736527087491,3.401,3237.1,3236.5,3.51682]
[1736527087492,1.51918,3236.6,3236.5,3.51682]
[1736527087796,1.51918,3236.6,3236.5,40.8]
[1736527087995,1.51918,3236.6,3236.5,41.10902]
[1736527088204,0.30904,3236.4,3236.3,0.30903]
[1736527088408,1.51918,3236.0,3235.9,0.30907]
[1736527088696,1.51918,3236.0,3235.9,41.10907]
[1736527089001,0.30903,3236.4,3236.3,0.30902]
[1736527089197,1.51918,3236.1,3236.0,0.30907]
[1736527090200,1.51918,3236.1,3235.9,40.8]
[1736527090390,1.51918,3236.0,3235.2,0.77284]
[1736527090590,1.51918,3235.5,3235.4,0.30912]
[1736527090895,1.51918,3235.5,3235.4,41.10912]
[1736527091297,3.2078,3236.2,3236.1,0.30906]
[1736527091703,4.72698,3236.2,3236.1,0.30906]
[1736527092593,1.51918,3236.2,3236.1,0.30906]
[1736527092796,1.51918,3236.2,3235.6,3.2078]
[1736527092991,1.51918,3235.7,3235.6,0.3091]
[1736527094299,1.51918,3235.7,3235.0,3.2078]
[1736527094497,1.51918,3235.2,3235.1,0.77289]
[1736527094696,1.51918,3235.2,3235.1,0.30915]
[1736527094899,1.6573,3235.6,3235.5,0.30911]
[1736527095195,2.93310468,3236.8,3236.3,0.30904]
[1736527095399,1.51918,3236.1,3236.0,0.30907]
[1736527096501,4.83658,3236.1,3235.9,0.30907]
[1736527096695,0.30907,3236.0,3235.9,0.30907]
[1736527096891,4.72698,3236.0,3235.4,3.2078]
[1736527097096,1.51918,3235.5,3235.4,3.51692]
[1736527097297,1.51918,3235.5,3235.4,41.10912]
[1736527098099,1.51918,3235.5,3235.4,40.8]
[1736527098310,1.82829,3235.5,3235.4,40.8]
[1736527098805,1.51918,3235.5,3235.4,41.10912]
[1736527099002,8.202,3236.1,3235.4,41.10912]
[1736527099207,1.51918,3235.7,3235.4,40.8]
[1736527099403,0.30907,3236.0,3235.9,0.30907]
[1736527099598,0.30907,3236.0,3235.4,40.8]
[1736527099599,1.51918,3235.5,3235.4,41.10912]
[1736527101004,6.5252,3236.1,3235.4,40.8]
[1736527101204,1.51918,3235.6,3235.5,0.30911]
[1736527101505,1.51918,3235.5,3235.4,41.10912]
[1736527102300,1.82829,3235.5,3235.4,41.10912]
[1736527102703,1.51918,3235.5,3235.4,41.10912]
[1736527102901,1.82829,3235.5,3235.4,41.10912]
[1736527103107,1.82829,3235.5,3235.4,40.8]
[1736527103302,1.51918,3235.5,3235.4,41.10912]
[1736527104305,6.5252,3236.1,3235.4,41.10912]
[1736527104514,1.51918,3235.6,3235.5,0.30911]
[1736527105109,1.82828,3235.6,3235.5,0.30911]
[1736527105317,1.51918,3235.6,3235.5,0.30911]
[1736527106907,0.30911,3235.5,3235.4,41.10912]
[1736527107109,1.82829,3235.5,3235.4,41.10912]
[1736527108317,0.30915,3235.2,3235.1,0.30914]
[1736527108622,1.82833,3235.2,3235.1,0.30914]
[1736527108809,0.30915,3235.1,3235.0,3.2078]
[1736527109007,0.30915,3235.1,3234.9,0.30917]
[1736527109008,0.30916,3235.0,3234.9,0.30917]
[1736527109209,4.72698,3235.0,3234.9,0.30917]
[1736527109415,3.2078,3235.8,3235.3,0.30913]
[1736527109614,1.51918,3235.6,3235.3,0.30913]
[1736527109816,3.51689,3235.8,3235.3,0.30913]
[1736527110008,3.51689,3235.8,3232.6,5.11882176]
[1736527110009,4.72698,3235.4,3234.4,0.77304]
[1736527110311,3.2078,3235.4,3234.3,6.14090468]
[1736527110620,1.51918,3234.8,3234.7,0.30919]
[1736527111922,1.51918,3234.8,3234.7,3.51699]
[1736527112422,0.30913,3235.4,3235.3,0.30912]
[1736527112616,1.51918,3235.0,3234.7,3.2078]
[1736527112822,1.51918,3235.0,3234.9,41.10917]
[1736527113319,1.51918,3235.0,3234.9,40.8]
[1736527113519,1.51918,3235.0,3234.9,41.10917]
[1736527114125,1.82834,3235.0,3234.9,41.10917]
[1736527114423,1.51918,3235.0,3234.9,41.10917]
[1736527114617,1.82834,3235.0,3234.9,40.8]
[1736527114824,5.19534,3235.0,3234.9,40.8]
[1736527115924,8.40314,3235.0,3234.9,40.8]
[1736527116437,0.3092,3234.8,3234.7,0.30918]
[1736527116637,1.51918,3234.8,3234.7,0.30918]
[1736527117235,1.51918,3234.8,3234.7,41.10918]
[1736527117740,1.82836,3234.8,3234.7,41.10918]
[1736527118038,1.51918,3234.8,3234.7,41.10918]
[1736527118939,0.77279,3235.6,3234.7,41.10918]
[1736527118940,0.30912,3235.5,3235.0,0.0015226]
[1736527119139,3.3511,3235.6,3235.0,0.0015226]
[1736527119437,1.51918,3235.1,3235.0,0.3106826]
[1736527120141,3.3511,3235.6,3235.5,0.30911]
[1736527120544,4.87028,3235.6,3235.5,0.30911]
[1736527120743,4.87028,3235.6,3235.5,41.10911]
[1736527120940,3.12998,3235.6,3235.5,41.10911]
[1736527121647,1.51918,3235.6,3235.5,41.10911]
[1736527122138,1.51918,3235.6,3235.5,40.8]
[1736527122341,1.82828,3235.6,3235.5,40.8]
[1736527122540,1.82828,3235.6,3235.5,41.10911]
[1736527122741,1.51918,3235.6,3235.5,41.10911]
[1736527122944,1.51918,3235.6,3235.5,40.8]
[1736527123138,0.30915,3235.1,3235.0,0.0015226]
[1736527123338,1.82833,3235.1,3235.0,0.0015226]
[1736527123837,1.51918,3235.1,3235.0,0.3106826]
[1736527124038,1.6657,3235.5,3235.4,0.30912]
[1736527124342,1.51918,3235.4,3235.1,1.08204]
[1736527124546,1.57601696,3235.6,3235.5,0.30911]
[1736527124839,6.96e-06,3235.6,3235.5,3.24221468]
[1736527125043,1.507,3236.9,3235.5,3.24221468]
[1736527125044,4.7995,3237.1,3235.6,0.77276]
[1736527125240,13.10560233,3237.7,3235.6,0.77276]
[1736527125241,1.51918,3236.8,3236.5,3.2078]
[1736527125434,1.51918,3236.8,3236.7,0.309]
[1736527125841,3.4222,3237.3,3237.2,0.30895]
[1736527126040,1.51918,3236.9,3236.8,0.30899]
[1736527127248,1.51918,3236.9,3236.8,41.10899]
[1736527127843,3.4222,3237.3,3237.2,0.30895]
[1736527128049,3.2078,3237.5,3236.8,41.10899]
[1736527128050,1.51918,3237.1,3236.8,41.10899]
[1736527128349,1.51918,3236.9,3236.8,41.10899]
[1736527130245,3.2834,3237.8,3237.7,0.3089]
[1736527130452,1.51918,3237.6,3237.5,0.30892]
[1736527131147,3.2881,3238.4,3237.4,1.7116]
[1736527131354,1.51918,3237.7,3237.6,0.30891]
[1736527131548,1.51918,3237.5,3237.4,1.7116]
[1736527131748,1.51918,3237.5,3237.4,0.30893]
[1736527132247,3.2881,3238.4,3237.4,0.30893]
[1736527132248,3.2881,3238.4,3237.4,2.93310468]
[1736527132451,1.51918,3237.9,3237.8,0.30889]
[1736527132749,1.51918,3237.9,3237.8,41.10889]
[1736527133247,3.2881,3238.4,3238.3,0.30885]
[1736527133644,5.11612,3238.4,3238.1,0.30886]
[1736527133949,5.11612,3238.4,3237.8,41.10889]
[1736527133950,1.51918,3237.9,3237.8,41.10889]
[1736527134545,1.51918,3237.9,3237.8,0.30889]
[1736527135147,0.30885,3238.3,3238.0,0.30887]
[1736527135346,3.59694,3238.4,3238.2,0.30885]
[1736527135542,1.51918,3237.8,3237.7,41.1089]
[1736527135751,1.51918,3238.3,3238.2,0.30886]
[1736527135952,0.42122348,3239.6,3239.5,0.30873]
[1736527136156,1.94040348,3239.6,3239.5,0.30873]
[1736527136344,1.51918,3239.6,3239.0,2.93310468]
[1736527136550,1.51918,3239.1,3239.0,2.93310468]
[1736527136750,1.51918,3239.1,3238.6,2.93310468]
[1736527137053,1.51918,3238.9,3238.8,0.3088]
[1736527137254,1.51918,3239.2,3238.8,3.2078]
[1736527137557,1.51918,3239.2,3239.1,0.30877]
[1736527137752,3.3901,3239.8,3239.1,40.8]
[1736527137947,1.51918,3239.6,3239.4,2.93310468]
[1736527138151,3.2078,3240.0,3239.4,2.93310468]
[1736527138352,1.51918,3240.0,3239.9,0.30869]
[1736527138757,3.3442,3240.7,3239.9,0.77173]
[1736527139056,1.51918,3240.3,3240.0,40.8]
[1736527139257,1.51918,3240.3,3240.2,0.30866]
[1736527140054,1.51918,3240.3,3240.2,3.24176468]
[1736527140448,1.51918,3240.3,3240.1,0.30867]
[1736527140746,1.51918,3240.3,3239.7,1.6236]
[1736527140747,1.51918,3240.0,3239.7,0.77178]
[1736527140947,6.552,3240.7,3239.8,40.8]
[1736527141149,1.51918,3239.7,3239.6,0.30872]
[1736527141350,6.552,3240.7,3239.6,3.51652]
[1736527141550,1.51918,3240.0,3239.6,3.51652]
[1736527141849,1.51918,3239.7,3239.6,0.30872]
[1736527142048,1.51918,3239.7,3239.4,6.14090468]
[1736527142049,1.51918,3239.9,3239.5,0.30873]
[1736527142356,1.51918,3239.7,3239.4,6.14090468]